fUSD/lending_fUSD_20250209
["ID","MTS","AMOUNT","RATE_DAILY","PERIOD"]
[352503338,1739139071547,-382.22,0.00010615,2]
[352503339,1739139071557,-500.0,0.00010682,2]
[352503340,1739139071567,-620.92,0.00010682,2]
[352503341,1739139071576,-158.165113,0.0001075,2]
[352503342,1739139071585,-500.0,0.0001075,2]
[352503343,1739139071595,-500.0,0.0001075,2]
[352503344,1739139071604,-500.0,0.0001075,2]
[352503345,1739139071613,-500.0,0.0001075,2]
[352503346,1739139071623,-500.0,0.0001075,2]
[352503347,1739139071633,-180.7304395,0.0001075,2]
[352503348,1739139071643,-500.0,0.0001075,2]
[352503349,1739139071652,-500.0,0.0001075,2]
[352503350,1739139071662,-492.7,0.0001075,2]
[352503351,1739139071671,-500.0,0.0001075,2]
[352503352,1739139071681,-500.0,0.0001075,2]
[352503353,1739139071691,-500.0,0.0001075,2]
[352503354,1739139071701,-544.6,0.0001075,2]
[352503355,1739139071711,-500.0,0.0001075,2]
[352503356,1739139071721,-500.0,0.0001075,2]
[352503357,1739139071731,-542.15,0.0001075,2]
[352503358,1739139071741,-500.0,0.0001075,2]
[352503359,1739139071750,-646.76,0.0001075,2]
[352503360,1739139071760,-500.0,0.0001075,2]
[352503361,1739139071771,-500.0,0.0001075,2]
[352503362,1739139071785,-500.0,0.0001075,2]
[352503363,1739139071795,-500.0,0.0001075,2]
[352503364,1739139071805,-582.84,0.0001075,2]
[352503365,1739139071815,-500.0,0.0001075,2]
[352503366,1739139071826,-500.0,0.0001075,2]
[352503367,1739139071835,-500.0,0.0001075,2]
[352503368,1739139071846,-500.0,0.0001075,2]
[352503369,1739139071855,-500.0,0.0001075,2]
[352503370,1739139071865,-623.44,0.0001075,2]
[352503371,1739139071875,-500.0,0.0001075,2]
[352503372,1739139071885,-500.0,0.0001075,2]
[352503373,1739139071895,-500.0,0.0001075,2]
[352503374,1739139071905,-500.0,0.0001075,2]
[352503375,1739139071914,-500.0,0.00010751,2]
[352503376,1739139071924,-500.0,0.00010751,2]
[352503377,1739139071934,-192.43,0.00010751,2]
[352503378,1739139071944,-500.0,0.00010751,2]
[352503379,1739139071955,-500.0,0.00010751,2]
[352503380,1739139071964,-554.39,0.00010751,2]
[352503381,1739139071974,-536.180207,0.00010751,2]
[352503382,1739139071984,-648.14750018,0.00010751,2]
[352503383,1739139071994,-556.555723,0.00010751,2]
[352503384,1739139072003,-511.99,0.00010751,2]
[352503385,1739139072013,-500.0,0.00010751,2]
[352503386,1739139072023,-458.31565249,0.00010751,2]
[352503387,1739139072036,-418.8,0.00010751,2]
[352503388,1739139072045,-500.0,0.00010751,2]
[352503389,1739139072056,-457.07,0.00010751,2]
[352503390,1739139072065,-576.65,0.00010751,2]
[352503391,1739139072075,-500.0,0.00010751,2]
[352503392,1739139072084,-500.0,0.00010751,2]
[352503393,1739139072093,-500.0,0.00010751,2]
[352503394,1739139072103,-500.0,0.00010751,2]
[352503395,1739139072113,-500.0,0.00010751,2]
[352503396,1739139072123,-500.0,0.00010751,2]
[352503397,1739139072132,-500.0,0.00010751,2]
[352503398,1739139072142,-500.0,0.00010751,2]
[352503399,1739139072152,-500.0,0.00010751,2]
[352503400,1739139072163,-500.0,0.00010751,2]
[352503401,1739139072172,-500.0,0.00010751,2]
[352503402,1739139072182,-500.0,0.00010751,2]
[352503403,1739139072191,-500.0,0.00010751,2]
[352503404,1739139072201,-500.0,0.00010751,2]
[352503405,1739139072210,-500.0,0.00010751,2]
[352503406,1739139072219,-571.54,0.00010751,2]
[352503407,1739139072230,-1125.45,0.00010751,2]
[352503408,1739139072239,-437.46,0.00010751,2]
[352503409,1739139072249,-500.0,0.00010751,2]
[352503410,1739139072259,-577.02,0.00010751,2]
[352503411,1739139072268,-500.0,0.00010751,2]
[352503412,1739139072279,-857.59,0.00010751,2]
[352503413,1739139072289,-500.0,0.00010751,2]
[352503414,1739139072299,-500.0,0.00010751,2]
[352503415,1739139072308,-500.0,0.00010751,2]
[352503416,1739139072318,-500.0,0.00010751,2]
[352503417,1739139072327,-500.0,0.00010751,2]
[352503418,1739139072337,-500.0,0.00010751,2]
[352503419,1739139072346,-174.19,0.00010751,2]
[352503420,1739139072356,-500.0,0.00010751,2]
[352503421,1739139072366,-155.78,0.00010751,2]
[352503422,1739139072375,-809.98,0.00010751,2]
[352503423,1739139072384,-500.0,0.00010751,2]
[352503424,1739139072394,-500.0,0.00010751,2]
[352503425,1739139072404,-500.0,0.00010751,2]
[352503426,1739139072413,-534.31,0.00010751,2]
[352503427,1739139072423,-508.64,0.00010751,2]
[352503428,1739139072433,-500.0,0.00010751,2]
[352503429,1739139072442,-500.0,0.00010751,2]
[352503430,1739139072451,-500.0,0.00010751,2]
[352503431,1739139072462,-189.75,0.00010751,2]
[352503432,1739139072473,-1106.41,0.00010751,2]
[352503433,1739139072484,-500.0,0.00010751,2]
[352503434,1739139072493,-500.0,0.00010751,2]
[352503435,1739139072503,-500.0,0.00010751,2]
[352503436,1739139072512,-500.0,0.00010751,2]
[352503437,1739139072522,-500.0,0.00010751,2]
[352503438,1739139072535,-634.66,0.00010751,2]
[352503439,1739139072544,-622.44,0.00010751,2]
[352503440,1739139072555,-500.0,0.00010751,2]
[352503441,1739139072564,-500.0,0.00010751,2]
[352503442,1739139072573,-161.27,0.00010751,2]
[352503443,1739139072583,-500.0,0.00010751,2]
[352503444,1739139072592,-500.0,0.00010751,2]
[352503445,1739139072601,-500.0,0.00010751,2]
[352503446,1739139072611,-500.0,0.00010751,2]
[352503447,1739139072620,-500.0,0.00010751,2]
[352503448,1739139072629,-474.5,0.00010751,2]
[352503449,1739139072639,-500.0,0.00010751,2]
[352503450,1739139072649,-500.0,0.00010752,2]
[352503451,1739139072658,-500.0,0.00010752,2]
[352503452,1739139072668,-500.0,0.00010752,2]
[352503453,1739139072677,-500.0,0.00010752,2]
[352503454,1739139072686,-500.0,0.00010752,2]
[352503455,1739139072696,-161.90811772,0.00010789,2]
[352503456,1739139072705,-500.0,0.0001082,2]
[352503457,1739139072714,-500.0,0.00010887,2]
[352503458,1739139072723,-500.0,0.00010887,2]
[352503459,1739139072733,-500.0,0.00010887,2]
[352503460,1739139072742,-172.03,0.00010887,2]
[352503461,1739139072752,-500.0,0.00010887,2]
[352503462,1739139072762,-500.0,0.00010887,2]
[352503463,1739139072771,-500.0,0.00010887,2]
[352503464,1739139072783,-500.0,0.00010887,2]
[352503465,1739139072792,-500.0,0.00010887,2]
[352503466,1739139072802,-500.0,0.00010887,2]
[352503467,1739139072812,-544.6,0.00010887,2]
[352503468,1739139072821,-500.0,0.00010887,2]
[352503469,1739139072831,-500.0,0.00010887,2]
[352503470,1739139072841,-542.15,0.00010887,2]
[352503471,1739139072851,-500.0,0.00010887,2]
[352503472,1739139072860,-646.76,0.00010887,2]
[352503473,1739139072870,-500.0,0.00010887,2]
[352503474,1739139072880,-500.0,0.00010887,2]
[352503475,1739139072890,-500.0,0.00010887,2]
[352503476,1739139072899,-500.0,0.00010887,2]
[352503477,1739139072908,-582.84,0.00010887,2]
[352503478,1739139072918,-500.0,0.00010887,2]
[352503479,1739139072928,-500.0,0.00010887,2]
[352503480,1739139072938,-500.0,0.00010887,2]
[352503481,1739139072947,-500.0,0.00010887,2]
[352503482,1739139072957,-155.916172,0.00010887,2]
[352503483,1739139072966,-500.0,0.00010887,2]
[352503484,1739139072975,-333.56,0.00010887,2]
[352503485,1739139072985,-500.0,0.00010887,2]
[352503486,1739139072995,-449.55487625,0.00010887,2]
[352503487,1739139073004,-554.5,0.00010887,2]
[352503488,1739139073014,-500.0,0.00010888,2]
[352503489,1739139073024,-500.0,0.00010888,2]
[352503490,1739139073035,-500.0,0.00010888,2]
[352503491,1739139073045,-500.0,0.00010888,2]
[352503492,1739139073054,-536.180207,0.00010888,2]
[352503493,1739139073064,-556.555723,0.00010888,2]
[352503494,1739139073073,-500.0,0.00010888,2]
[352503495,1739139073082,-500.0,0.00010888,2]
[352503496,1739139073091,-500.0,0.00010888,2]
[352503497,1739139073100,-500.0,0.00010888,2]
[352503498,1739139073109,-500.0,0.00010888,2]
[352503499,1739139073119,-500.0,0.00010888,2]
[352503500,1739139073128,-639.81,0.00010888,2]
[352503501,1739139073137,-500.0,0.00010888,2]
[352503502,1739139073146,-500.0,0.00010888,2]
[352503503,1739139073155,-500.0,0.00010888,2]
[352503504,1739139073165,-500.0,0.00010888,2]
[352503505,1739139073174,-500.0,0.00010888,2]
[352503506,1739139073184,-500.0,0.00010888,2]
[352503507,1739139073193,-500.0,0.00010888,2]
[352503508,1739139073202,-500.0,0.00010888,2]
[352503509,1739139073320,-500.0,0.00010888,2]
[352503510,1739139073331,-500.0,0.00010888,2]
[352503511,1739139073340,-571.54,0.00010888,2]
[352503512,1739139073350,-1125.45,0.00010888,2]
[352503513,1739139073359,-500.0,0.00010888,2]
[352503514,1739139073369,-577.02,0.00010888,2]
[352503515,1739139073379,-500.0,0.00010888,2]
[352503516,1739139073388,-857.59,0.00010888,2]
[352503517,1739139073398,-500.0,0.00010888,2]
[352503518,1739139073407,-500.0,0.00010888,2]
[352503519,1739139073415,-500.0,0.00010888,2]
[352503520,1739139073424,-500.0,0.00010888,2]
[352503521,1739139073433,-500.0,0.00010888,2]
[352503522,1739139073443,-641.45,0.00010888,2]
[352503523,1739139073452,-500.0,0.00010888,2]
[352503524,1739139073462,-70.18856886,0.00010888,2]
[352503525,1739139073610,-739.79143114,0.00010888,2]
[352503526,1739139073620,-500.0,0.00010888,2]
[352503527,1739139073629,-500.0,0.00010888,2]
[352503528,1739139073639,-500.0,0.00010888,2]
[352503529,1739139073648,-534.31,0.00010888,2]
[352503530,1739139073657,-500.0,0.00010888,2]
[352503531,1739139073667,-500.0,0.00010888,2]
[352503532,1739139073676,-500.0,0.00010888,2]
[352503533,1739139073686,-1106.41,0.00010888,2]
[352503534,1739139073695,-500.0,0.00010888,2]
[352503535,1739139073705,-500.0,0.00010888,2]
[352503536,1739139073714,-500.0,0.00010888,2]
[352503537,1739139073723,-500.0,0.00010888,2]
[352503538,1739139073733,-500.01,0.00010888,2]
[352503539,1739139073742,-622.44,0.00010888,2]
[352503540,1739139073752,-500.0,0.00010888,2]
[352503541,1739139073762,-500.0,0.00010888,2]
[352503542,1739139073771,-16.53856886,0.00010888,2]
[352503543,1739139073784,-483.46143114,0.00010888,2]
[352503544,1739139073793,-256.93890474,0.00010888,2]
[352503545,1739139073804,-224.90109526,0.00010888,2]
[352503546,1739139073814,-500.0,0.00010888,2]
[352503547,1739139073824,-500.0,0.00010888,2]
[352503548,1739139073833,-500.0,0.00010888,2]
[352503549,1739139073844,-500.0,0.00010888,2]
[352503550,1739139073853,-500.0,0.00010889,2]
[352503551,1739139073863,-500.0,0.00010889,2]
[352503552,1739139073872,-500.0,0.00010889,2]
[352503553,1739139073881,-500.0,0.00010889,2]
[352503554,1739139073891,-2300.0,0.000109,3]
[352503555,1739139073900,-173.46391691,0.000109,2]
[352503556,1739139073910,-500.0,0.00010957,2]
[352503557,1739139073919,-759.26,0.00010959,2]
[352503558,1739139073928,-173.46391688,0.00011004,2]
[352503559,1739139073938,-500.0,0.00011024,2]
[352503560,1739139073947,-500.0,0.00011024,2]
[352503561,1739139073956,-500.0,0.00011024,2]
[352503562,1739139073966,-500.0,0.00011024,2]
[352503563,1739139073976,-500.0,0.00011024,2]
[352503564,1739139073985,-500.0,0.00011024,2]
[352503565,1739139073994,-500.0,0.00011024,2]
[352503566,1739139074003,-500.0,0.00011024,2]
[352503567,1739139074013,-500.0,0.00011024,2]
[352503568,1739139074022,-544.6,0.00011024,2]
[352503569,1739139074033,-500.0,0.00011024,2]
[352503570,1739139074042,-500.0,0.00011024,2]
[352503571,1739139074051,-542.15,0.00011024,2]
[352503572,1739139074060,-500.0,0.00011024,2]
[352503573,1739139074069,-646.76,0.00011024,2]
[352503574,1739139074079,-500.0,0.00011024,2]
[352503575,1739139074089,-500.0,0.00011024,2]
[352503576,1739139074098,-541.43815858,0.00011024,2]
[352503577,1739139074108,-582.84,0.00011024,2]
[352503578,1739139074117,-500.0,0.00011024,2]
[352503579,1739139074126,-500.0,0.00011024,2]
[352503580,1739139074135,-500.0,0.00011024,2]
[352503581,1739139074145,-500.0,0.00011024,2]
[352503582,1739139074155,-500.0,0.00011024,2]
[352503583,1739139074164,-500.0,0.00011024,2]
[352503584,1739139074174,-335.51616397,0.00011025,2]
[352503585,1739139074184,-500.0,0.00011025,2]
[352503586,1739139074194,-500.0,0.00011025,2]
[352503587,1739139074204,-500.0,0.00011025,2]
[352503588,1739139074215,-536.180207,0.00011025,2]
[352503589,1739139074225,-556.555723,0.00011025,2]
[352503590,1739139074235,-500.0,0.00011025,2]
[352503591,1739139074244,-500.0,0.00011025,2]
[352503592,1739139074253,-500.0,0.00011025,2]
[352503593,1739139074263,-500.0,0.00011025,2]
[352503594,1739139074272,-500.0,0.00011025,2]
[352503595,1739139074284,-500.0,0.00011025,2]
[352503596,1739139074294,-211.36,0.00011025,2]
[352503597,1739139074304,-500.0,0.00011025,2]
[352503598,1739139074313,-500.0,0.00011025,2]
[352503599,1739139074323,-500.0,0.00011025,2]
[352503600,1739139074332,-500.0,0.00011025,2]
[352503601,1739139074342,-500.0,0.00011025,2]
[352503602,1739139074351,-500.0,0.00011025,2]
[352503603,1739139074360,-500.0,0.00011025,2]
[352503604,1739139074370,-500.0,0.00011025,2]
[352503605,1739139074379,-500.0,0.00011025,2]
[352503606,1739139074388,-571.54,0.00011025,2]
[352503607,1739139074397,-1125.45,0.00011025,2]
[352503608,1739139074407,-500.0,0.00011025,2]
[352503609,1739139074416,-577.02,0.00011025,2]
[352503610,1739139074426,-500.0,0.00011025,2]
[352503611,1739139074435,-857.59,0.00011025,2]
[352503612,1739139074445,-500.0,0.00011025,2]
[352503613,1739139074453,-500.0,0.00011025,2]
[352503614,1739139074462,-202.31108972,0.00011025,2]
[352503615,1739139074474,-500.0,0.00011025,2]
[352503616,1739139074483,-500.0,0.00011025,2]
[352503617,1739139074492,-500.0,0.00011025,2]
[352503618,1739139074502,-809.98,0.00011025,2]
[352503619,1739139074512,-500.0,0.00011025,2]
[352503620,1739139074521,-500.0,0.00011025,2]
[352503621,1739139074532,-500.0,0.00011025,2]
[352503622,1739139074541,-534.31,0.00011025,2]
[352503623,1739139074552,-330.67146575,0.00011025,2]
[352503624,1739139074561,-500.0,0.00011025,2]
[352503625,1739139074570,-500.0,0.00011025,2]
[352503626,1739139074579,-1106.41,0.00011025,2]
[352503627,1739139074588,-500.0,0.00011025,2]
[352503628,1739139074599,-335.67,0.00011025,2]
[352503629,1739139074608,-500.0,0.00011025,2]
[352503630,1739139074618,-500.0,0.00011025,2]
[352503631,1739139074627,-622.44,0.00011025,2]
[352503632,1739139074637,-543.01,0.00011025,2]
[352503633,1739139074646,-410.47,0.00011025,2]
[352503634,1739139074655,-500.0,0.00011025,2]
[352503635,1739139074664,-500.0,0.00011025,2]
[352503636,1739139074673,-500.0,0.00011025,2]
[352503637,1739139074683,-500.0,0.00011025,2]
[352503638,1739139074692,-500.0,0.00011025,2]
[352503639,1739139074702,-297.02577334,0.00011026,2]
[352503640,1739139074712,-257.0705192,0.00011026,2]
[352503641,1739139074724,-3.41266223,0.00011026,2]
[352503642,1739139074733,-500.0,0.00011161,2]
[352503643,1739139074743,-500.0,0.00011161,2]
[352503644,1739139074753,-500.0,0.00011161,2]
[352503645,1739139074763,-500.0,0.00011161,2]
[352503646,1739139074773,-500.0,0.00011161,2]
[352503647,1739139074787,-500.0,0.00011161,2]
[352503648,1739139074797,-500.0,0.00011161,2]
[352503649,1739139074807,-500.0,0.00011161,2]
[352503650,1739139074816,-500.0,0.00011161,2]
[352503651,1739139074826,-544.6,0.00011161,2]
[352503652,1739139074835,-500.0,0.00011161,2]
[352503653,1739139074845,-500.0,0.00011161,2]
[352503654,1739139074854,-542.15,0.00011161,2]
[352503655,1739139074864,-500.0,0.00011161,2]
[352503656,1739139074873,-646.76,0.00011161,2]
[352503657,1739139074883,-500.0,0.00011161,2]
[352503658,1739139074893,-368.19696438,0.00011161,2]
[352503659,1739139074902,-582.84,0.00011161,2]
[352503660,1739139074911,-500.0,0.00011161,2]
[352503661,1739139074921,-571.41,0.00011161,2]
[352503662,1739139074931,-500.0,0.00011161,2]
[352503663,1739139074940,-498.96,0.00011161,2]
[352503664,1739139074949,-500.0,0.00011161,2]
[352503665,1739139074959,-500.0,0.00011162,2]
[352503666,1739139074969,-500.0,0.00011162,2]
[352503667,1739139074979,-500.0,0.00011162,2]
[352503668,1739139074988,-536.180207,0.00011162,2]
[352503669,1739139074998,-556.555723,0.00011162,2]
[352503670,1739139075007,-366.48,0.00011162,2]
[352503671,1739139075016,-500.0,0.00011162,2]
[352503672,1739139075025,-500.0,0.00011162,2]
[352503673,1739139075037,-500.0,0.00011162,2]
[352503674,1739139075046,-500.0,0.00011162,2]
[352503675,1739139075055,-500.0,0.00011162,2]
[352503676,1739139075064,-500.0,0.00011162,2]
[352503677,1739139075073,-500.0,0.00011162,2]
[352503678,1739139075083,-500.0,0.00011162,2]
[352503679,1739139075092,-500.0,0.00011162,2]
[352503680,1739139075101,-500.0,0.00011162,2]
[352503681,1739139075110,-500.0,0.00011162,2]
[352503682,1739139075119,-500.0,0.00011162,2]
[352503683,1739139075129,-500.0,0.00011162,2]
[352503684,1739139075138,-500.0,0.00011162,2]
[352503685,1739139075147,-571.54,0.00011162,2]
[352503686,1739139075156,-1125.45,0.00011162,2]
[352503687,1739139075166,-500.0,0.00011162,2]
[352503688,1739139075176,-577.02,0.00011162,2]
[352503689,1739139075297,-857.59,0.00011162,2]
[352503690,1739139075307,-500.0,0.00011162,2]
[352503691,1739139075316,-500.0,0.00011162,2]
[352503692,1739139075325,-500.0,0.00011162,2]
[352503693,1739139075334,-312.87030243,0.00011162,2]
[352503694,1739139075346,-187.12969757,0.00011162,2]
[352503695,1739139075356,-500.0,0.00011162,2]
[352503696,1739139075366,-809.98,0.00011162,2]
[352503697,1739139075376,-500.0,0.00011162,2]
[352503698,1739139075385,-221.05430913,0.00011162,2]
[352503699,1739139322842,-5000.0,8.973e-05,2]
[352503701,1739139649608,9000.0,0.0002,120]
[352503702,1739139736009,-745.43,8.219e-05,2]
[352503703,1739139736036,-2561.5056,8.973e-05,2]
[352503719,1739140231674,-494.71842282,8.851e-05,2]
[352503720,1739140231686,-1158.5934276,8.851e-05,2]
[352503721,1739140231701,-846.68814958,8.851e-05,2]
[352503722,1739140231711,-196.75,8.931e-05,2]
[352503723,1739140231720,-804.85,9.211e-05,2]
[352503724,1739140231730,-782.18,9.264e-05,2]
[352503725,1739140231738,-1000.0,9.349e-05,2]
[352503726,1739140231748,-200.0,9.359e-05,2]
[352503727,1739140231759,-600.0,9.4e-05,3]
[352503728,1739140231768,-1135.85214043,9.5e-05,3]
[352503729,1739140231814,-64.14785957,9.5e-05,3]
[352503730,1739140231824,-196.85214043,9.518e-05,2]
[352503731,1739140231923,-6735.49785957,9.518e-05,2]
[352503732,1739140231933,-250.0,9.559e-05,2]
[352503733,1739140231943,-1800.0,9.6e-05,3]
[352503734,1739140231953,-500.0,9.654e-05,2]
[352503735,1739140231963,-265.73308779,9.655e-05,2]
[352503736,1739140231973,-2400.0,9.7e-05,3]
[352503737,1739140231983,-500.0,9.736e-05,2]
[352503738,1739140231993,-249.09,9.791e-05,2]
[352503739,1739140232003,-5009.63,9.791e-05,2]
[352503740,1739140232014,-3000.0,9.8e-05,3]
[352503741,1739140232023,-600.0,9.9e-05,3]
[352503742,1739140232033,-167.5365679,9.951e-05,2]
[352503743,1739140232043,-500.0,9.999e-05,2]
[352503744,1739140232053,-500.0,9.999e-05,2]
[352503746,1739140232062,-500.0,9.999e-05,2]
[352503748,1739140232072,-500.0,9.999e-05,2]
[352503750,1739140232082,-500.0,9.999e-05,2]
[352503752,1739140232091,-500.0,9.999e-05,2]
[352503754,1739140232101,-500.0,9.999e-05,2]
[352503756,1739140232110,-500.0,9.999e-05,2]
[352503758,1739140232121,-500.0,9.999e-05,2]
[352503760,1739140232131,-500.0,9.999e-05,2]
[352503762,1739140232140,-500.0,9.999e-05,2]
[352503764,1739140232150,-500.0,9.999e-05,2]
[352503766,1739140232160,-500.0,9.999e-05,2]
[352503768,1739140232169,-500.0,9.999e-05,2]
[352503770,1739140232179,-427.91,9.999e-05,2]
[352503772,1739140232188,-500.0,9.999e-05,2]
[352503774,1739140232198,-500.0,9.999e-05,2]
[352503776,1739140232207,-500.0,9.999e-05,2]
[352503778,1739140232217,-500.0,9.999e-05,2]
[352503780,1739140232226,-500.0,9.999e-05,2]
[352503782,1739140232235,-500.0,9.999e-05,2]
[352503783,1739140232244,-500.0,9.999e-05,2]
[352503786,1739140232253,-502.49464332,9.999e-05,2]
[352503788,1739140232263,-500.0,9.999e-05,2]
[352503790,1739140232272,-500.0,9.999e-05,2]
[352503792,1739140232281,-500.0,9.999e-05,2]
[352503794,1739140232290,-500.0,9.999e-05,2]
[352503796,1739140232300,-500.0,9.999e-05,2]
[352503798,1739140232310,-500.0,9.999e-05,2]
[352503800,1739140232320,-500.0,9.999e-05,2]
[352503802,1739140232329,-500.0,9.999e-05,2]
[352503804,1739140232339,-500.0,9.999e-05,2]
[352503806,1739140232348,-584.4,9.999e-05,2]
[352503807,1739140232357,-500.0,9.999e-05,2]
[352503808,1739140232366,-500.0,9.999e-05,2]
[352503809,1739140232375,-500.0,9.999e-05,2]
[352503810,1739140232385,-500.0,9.999e-05,2]
[352503811,1739140232394,-500.0,9.999e-05,2]
[352503812,1739140232403,-281.69060875,9.999e-05,2]
[352503813,1739140232412,-500.0,9.999e-05,2]
[352503815,1739140232421,-500.0,9.999e-05,2]
[352503817,1739140232431,-500.0,9.999e-05,2]
[352503819,1739140232440,-500.0,9.999e-05,2]
[352503821,1739140232450,-500.0,9.999e-05,2]
[352503823,1739140232459,-500.0,9.999e-05,2]
[352503825,1739140232468,-500.0,9.999e-05,2]
[352503827,1739140232477,-219.34097218,9.999e-05,2]
[352503829,1739140232487,-500.0,9.999e-05,2]
[352503831,1739140232496,-500.0,9.999e-05,2]
[352503833,1739140232506,-500.0,9.999e-05,2]
[352503835,1739140232515,-500.0,9.999e-05,2]
[352503838,1739140232525,-500.0,9.999e-05,2]
[352503840,1739140232534,-500.0,9.999e-05,2]
[352503842,1739140232544,-500.0,9.999e-05,2]
[352503844,1739140232553,-500.0,9.999e-05,2]
[352503846,1739140232563,-500.0,9.999e-05,2]
[352503848,1739140232571,-500.0,9.999e-05,2]
[352503850,1739140232581,-500.0,9.999e-05,2]
[352503852,1739140232591,-299.89162989,9.999e-05,2]
[352503854,1739140232600,-500.0,9.999e-05,2]
[352503857,1739140232619,-500.0,9.999e-05,2]
[352503859,1739140232628,-497.03253678,9.999e-05,2]
[352503861,1739140232637,-500.0,9.999e-05,2]
[352503862,1739140232646,-348.58441591,9.999e-05,2]
[352503864,1739140232656,-195684.32915657,0.0001,2]
[352503866,1739140232672,-3148.97995,0.0001,2]
[352503870,1739140237643,-255.91566008,9.999e-05,2]
[352503871,1739140237674,-248.79120345,9.999e-05,2]
[352503872,1739140237684,-500.0,9.999e-05,2]
[352503873,1739140237693,-500.0,9.999e-05,2]
[352503874,1739140237703,-500.0,9.999e-05,2]
[352503875,1739140237712,-3076.68092398,0.0001,2]
[352503876,1739140237724,-644.0,0.0001,2]
[352503877,1739140237775,-500.0,9.999e-05,2]
[352503878,1739140237786,-4454451.63568269,0.0001,2]
[352504063,1739140239741,-500.0,9.999e-05,2]
[352504065,1739140239751,-500.0,9.999e-05,2]
[352504067,1739140239760,-7913.25356069,0.0001,2]
[352504069,1739140239774,-34808.04978947,0.0001,2]
[352504082,1739140239896,-1367.32128771,0.0001,2]
[352504084,1739140239909,-439.7672092,0.0001,2]
[352504087,1739140239922,-1814.02447714,0.0001,2]
[352504089,1739140239933,-6215.81125024,0.0001,2]
[352504373,1739140242655,-500.0,9.999e-05,2]
[352504375,1739140242664,-500.0,9.999e-05,2]
[352504377,1739140242673,-500.0,9.999e-05,2]
[352504379,1739140242683,-500.0,9.999e-05,2]
[352504381,1739140242692,-562.70000023,0.0001,2]
[352504388,1739140242753,-298.35142662,0.0001,2]
[352504391,1739140242765,-803.44000001,0.0001,2]
[352504399,1739140242850,-632.91500005,0.0001,2]
[352504401,1739140242861,-2998.66361415,0.0001,2]
[352504404,1739140242873,-47948.752,0.0001,2]
[352504406,1739140242885,-15705.0,0.0001,2]
[352504474,1739140245730,-500.0,9.999e-05,2]
[352504475,1739140245740,-500.0,9.999e-05,2]
[352504476,1739140245750,-259.91805297,9.999e-05,2]
[352504477,1739140245838,-240.08194703,9.999e-05,2]
[352504478,1739140245848,-47005.52950616,0.0001,2]
[352504479,1739140245860,-19178.4,0.0001,2]
[352504480,1739140245945,-500.0,9.999e-05,2]
[352504481,1739140245955,-4655.28999998,0.0001,2]
[352504482,1739140245967,-962.61138,0.0001,2]
[352504939,1739141431795,-708.15,8.219e-05,2]
[352504940,1739141431805,-163.87,8.639e-05,2]
[352504941,1739141431815,-303.23,8.648e-05,2]
[352504942,1739141431825,-1000.0,8.674e-05,2]
[352504943,1739141431834,-18.65,8.679e-05,2]
[352504944,1739141431952,-2033.399527,8.679e-05,2]
[352504945,1739141432012,-858.14655778,8.679e-05,2]
[352504946,1739141432021,-762.63496586,8.679e-05,2]